Cogmind - Beta 11 X7 @@@ ROGUE MODE // 2021.08.30 @ 01:25:53 Player: Runia Result: Destroyed by P-70 Sage via exploding Power Conduit Performance ------------- Evolutions (6) 3000 Regions Visited (19) 3800 Robots Destroyed (259) 1295 Value Destroyed (8624) 8624 Prototype IDs (36) 720 Alien Tech Used (0) 0 Bonus (5564) 5564 TOTAL SCORE: 23003 Bonus ------- High Alert Combat Kills 1563 Follower Combat Kills 3602 Network Hubs Disabled 200 Met Data Miner 300 Met Imprinter 300 Was Imprinted 300 Built Enhanced Grunts 300 A7 Reached Mainframe 300 Met R17 at Cetus 500 Friendly Fire -1801 Cogmind --------- Core Integrity 0/1150 Matter 123/300 Energy 99/100 System Corruption 2% Temperature Cool (36) Movement Core (50) Location -4/Factory Parts ------- > --- POWER (1) -------- (None) > --- PROPULSION (6) --- (None) > --- UTILITY (8) ------ Enhanced Optical Array Advanced Terrain Scan Processor Improved Power Shielding > --- WEAPON (4) ------- (None) > --- INVENTORY (5) ---- Stealth Drone Bay (2/2) Peak State ------------ > --- POWER ------------ Quantum Reactor > --- PROPULSION ------- Centrium Heavy Treads Centrium Heavy Treads Centrium Heavy Treads > --- UTILITY ---------- Huge Storage Unit Enhanced Optical Array Advanced Signal Interpreter Advanced Terrain Scan Processor Advanced Target Analyzer Improved Kinecellerator Centrium Medium Armor Plating Improved System Restoration Module > --- WEAPON ----------- KE Penetrator Enhanced Coil Gun Improved KE Penetrator Improved KE Penetrator > --- INVENTORY -------- Antimatter Reactor Armored Medium Treads Improved Matter Compressor Advanced Sensor Array Improved Terrain Scanner Improved Transmission Jammer Zionite Heavy Carapace Centrium Medium Armor Plating Advanced Focal Shield Advanced Shield Generator Advanced Hacking Suite Stealth Drone Bay Heavy Plasma Cannon Hypervelocity Gauss Rifle Heavy Machine Gun Heavy Machine Gun Enhanced Coil Gun Heavy Rocket Launcher Advanced Datajack Improved Plasma Cutter Molecular Deconstructor Lance [Rating: 151] Favorites ----------- Power Improved Deuterium Engine Engine Improved Deuterium Engine Power Core Enhanced Nuclear Core Reactor Particle Reactor Propulsion Armored Treads Treads Armored Treads Leg Improved Carbon-fiber Leg Wheel Wheel Utility Large Storage Unit Device Advanced Sensor Array Storage Large Storage Unit Processor Improved Melee Analysis Suite Hackware Hacking Suite Protection Hardened Heavy Armor Plating Weapon Heavy Machine Gun Energy Gun Medium Laser Energy Cannon Heavy Plasma Cannon Ballistic Gun Heavy Machine Gun Launcher Rocket Array Special Weapon Molecular Deconstructor Impact Weapon Heavy Flail Slashing Weapon Chainsword Piercing Weapon Lance Build | -11 -10 -9 -8 -7 -7 -7 -7 -6 -6 -6 -6 -6 -5 -5 -5 -5 -5 -5 -4 ------- Run | Scr Mat Mat Mat Fac Low Low Zio Pro Fac Low Low Dat Pro Fac Ext Cet Arc Hub Fac Slots Evolved 12 | . . 2 2 2 . . . . 2 . . . . 2 . . . . 2 Power . | . . . . . . . . . . . . . . . . . . . . Propulsion 4 | . . 1 . 2 . . . . . . . . . . . . . . 1 Utility 6 | . . . 2 . . . . . 2 . . . . 1 . . . . 1 Weapon 2 | . . 1 . . . . . . . . . . . 1 . . . . . Parts Attached 409 | . 15 21 28 33 6 14 10 12 97 10 24 2 7 10 22 17 6 14 61 Power 22 | . . 5 . 2 . 1 . 1 3 . 2 . . . 3 . 1 1 3 Engine 12 | . . 5 . 1 . 1 . 1 3 . 1 . . . . . . . . Core 7 | . . . . 1 . . . . . . 1 . . . 3 . . . 2 Reactor 3 | . . . . . . . . . . . . . . . . . 1 1 1 Propulsion 64 | . 2 5 10 10 1 2 2 3 15 . 3 . . . 4 2 . 1 4 Treads 41 | . 2 5 5 . . . . 2 14 . 3 . . . 4 2 . 1 3 Leg 22 | . . . 5 10 1 1 2 1 1 . . . . . . . . . 1 Wheel 1 | . . . . . . 1 . . . . . . . . . . . . . Hover . | . . . . . . . . . . . . . . . . . . . . Flight . | . . . . . . . . . . . . . . . . . . . . Utility 156 | . 8 4 9 12 . 5 3 1 48 7 8 . 1 1 7 2 3 4 33 Device 83 | . . 2 2 5 . 2 . . 36 5 3 . 1 1 2 . 3 3 18 Storage 14 | . 6 . 2 . . . . . 4 . . . . . 1 . . . 1 Processor 20 | . . . 3 3 . 1 1 1 3 . 2 . . . 1 1 . . 4 Hackware 4 | . . . 1 . . . 1 . 1 . . . . . . . . . 1 Protection 35 | . 2 2 1 4 . 2 1 . 4 2 3 . . . 3 1 . 1 9 Artifact . | . . . . . . . . . . . . . . . . . . . . Weapon 167 | . 5 7 9 9 5 6 5 7 31 3 11 2 6 9 8 13 2 8 21 Energy Gun 3 | . . 1 . 1 1 . . . . . . . . . . . . . . Energy Cannon 15 | . . . . . . . . . 2 . 1 . 2 2 . . . 3 5 Ballistic Gun 74 | . 4 4 4 1 . . . . 18 2 4 . 2 3 6 11 1 4 10 Ballistic Cannon . | . . . . . . . . . . . . . . . . . . . . Launcher 25 | . 1 2 3 2 1 2 2 1 5 . . 1 . . . 1 . 1 3 Special Weapon 5 | . . . . . . . . 2 . . . . . 1 1 1 . . . Impact Weapon 1 | . . . . . . . 1 . . . . . . . . . . . . Slashing Weapon 36 | . . . 2 5 3 4 2 4 6 1 6 1 2 . . . . . . Piercing Weapon 8 | . . . . . . . . . . . . . . 3 1 . 1 . 3 Special Melee Weapon . | . . . . . . . . . . . . . . . . . . . . Unidentified Prototypes 19 | . . 2 . 3 . . 2 . 2 . . . . . 2 5 . . 3 Parts Lost 75 | . 1 2 3 2 2 11 . 2 14 2 1 . . 2 . . . 4 29 Power 7 | . . 1 . . . 1 . . 2 . . . . . . . . 1 2 Propulsion 21 | . . 1 . . 1 7 . . 5 1 1 . . . . . . . 5 Utility 27 | . 1 . 2 2 1 2 . 1 4 . . . . 2 . . . 2 10 Weapon 20 | . . . 1 . . 1 . 1 3 1 . . . . . . . 1 12 Highest Loss Streak 23 | . 1 2 2 1 2 5 . 1 4 2 1 . . 2 . . . 4 23 Average Slot Usage (%) 80 | . 98 99 95 98 99 63 59 82 98 91 83 74 83 86 93 86 81 81 74 Engine 5 | . 14 10 9 2 . 4 7 7 5 6 5 6 6 5 3 . . . . Treads 14 | . 28 32 23 . . . . 3 31 25 21 26 26 23 28 22 17 17 12 Leg 4 | . . . 3 37 38 9 2 20 1 . . . . . . . . . . Device 7 | . . 1 2 5 7 3 6 . 11 17 9 13 13 14 6 2 1 9 9 Storage 6 | . 14 11 9 7 7 7 7 7 6 6 6 6 6 5 5 5 5 5 4 Processor 12 | . . . 12 14 14 7 8 17 17 13 18 20 20 14 15 17 14 11 19 Hackware 1 | . . . 5 . . . 4 . 1 . . . . . . . . . . Protection 2 | . 12 9 3 2 . 5 . 4 . 1 . . . . 4 8 11 6 3 Ballistic Gun 10 | . 26 31 23 . . . . . 19 14 18 . 3 14 19 21 20 21 16 Launcher 1 | . 1 . . . . . 4 1 . . . . . . . . . . . Impact Weapon 1 | . . . . . . . 5 . . . . . . . . . . . . Slashing Weapon 6 | . . . 2 21 22 20 8 16 . 4 1 . 5 . . . . . . Naked Turns . | . . . . . . . . . . . . . . . . . . . . Heaviest Build 149 | 14 38 46 58 43 41 61 44 48 130 128 129 105 118 126 145 149 149 148 140 Greatest Support 240 | 20 40 63 63 92 92 71 43 63 126 106 98 98 98 98 138 190 190 190 240 Greatest Overweight (x) 48 | . . . . . . 16 14 . 1 1 2 1 1 1 1 1 48 . 1 Average Overweight (x) 1 | . . . . . . 4 7 . . 1 1 . 1 1 . . 5 . . Largest Inventory Capacity 25 | 8 25 15 20 15 15 15 15 15 25 25 25 25 25 25 25 25 25 25 25 Average Capacity 19 | 8 12 15 16 15 15 15 15 15 23 25 25 25 25 25 25 25 25 25 21 Most Carried 25 | 6 15 15 20 15 15 15 15 15 25 25 25 25 25 24 25 25 25 25 25 Average Carried 17 | 5 10 12 15 14 14 9 14 14 21 22 23 24 24 21 23 24 24 24 19 Final Capacity 25 | 8 15 15 15 15 15 15 15 15 25 25 25 25 25 25 25 25 25 25 5 Final Carried 25 | 6 15 15 15 15 15 14 15 15 23 23 23 24 25 21 24 25 25 23 2 Class Distribution -------------------- 49% | Mutant 11% | Scavenger-Mutant 10% | Scavenger-Gunner 7% | Scavenger-Tank 5% | Scavenger-Assassin 5% | Scavenger-Skirmisher 4% | Gunner Dominant Class ---------------- Mutant | -10/Materials Tank | -9/Materials Gunner | -8/Materials Mutant | -7/Factory Mutant | -7/Lower Caves Mutant | -7/Lower Caves Mutant | -7/Zion Mutant | -6/Proximity Caves Scavenger-Gunner | -6/Factory Scavenger-Assassin | -6/Lower Caves Skirmisher | -6/Lower Caves Scavenger-Mutant | -6/Data Miner Scavenger-Mutant | -5/Proximity Caves Scavenger-Mutant | -5/Factory Scavenger-Tank | -5/Extension Scavenger-Tank | -5/Cetus Scavenger-Tank | -5/Archives Scavenger-Skirmisher | -5/Hub_04(d) Scavenger-Skirmisher | -4/Factory Resources | -11 -10 -9 -8 -7 -7 -7 -7 -6 -6 -6 -6 -6 -5 -5 -5 -5 -5 -5 -4 ----------- Run | Scr Mat Mat Mat Fac Low Low Zio Pro Fac Low Low Dat Pro Fac Ext Cet Arc Hub Fac Matter Collected 8825 | 212 157 820 1094 408 77 253 100 240 2293 115 421 . 84 104 560 262 225 340 1060 Remotely . | . . . . . . . . . . . . . . . . . . . . Salvage Created 11012 | 75 393 924 1296 1113 45 385 . 301 2756 411 349 . . . 448 203 260 477 1576 Parts 557 | 4 41 64 78 65 4 22 . 12 112 10 12 . . . 15 7 17 16 78 Haulers Intercepted 18 | . 2 3 4 4 . . . . 3 . . . . . . . . . 2 Recyclers Shooed 5 | . . 1 2 . . . . . 2 . . . . . . . . . . Parts Field Recycled 25 | . . 25 . . . . . . . . . . . . . . . . . Retrieved Matter 203 | . . 203 . . . . . . . . . . . . . . . . . Parts Self-Destructed 57 | . . . . . 4 21 . 8 . 9 9 . 6 . . . . . . Prevented 7 | . . . . . . 1 1 5 . . . . . . . . . . . Kills | -11 -10 -9 -8 -7 -7 -7 -7 -6 -6 -6 -6 -6 -5 -5 -5 -5 -5 -5 -4 ------- Run | Scr Mat Mat Mat Fac Low Low Zio Pro Fac Low Low Dat Pro Fac Ext Cet Arc Hub Fac Combat Hostiles Destroyed 173 | . 13 17 25 14 1 18 . 7 42 3 3 . . . 1 3 1 6 19 Melee 13 | . . . . 7 1 2 . 1 2 . . . . . . . . . . Guns 91 | . 4 11 18 . . . . . 30 3 3 . . . 1 3 1 4 13 AOE 69 | . 9 6 7 7 . 16 . 6 10 . . . . . . . . 2 6 Classes Destroyed 19 | 2 7 1 2 2 . 1 . 1 2 1 . . . . . . . . . Worker 9 | . 1 1 . 5 . . . . 1 . . . . . . . . . 1 Builder 13 | . 2 1 1 2 . . . . 5 . . . . . . . . . 2 Tunneler 2 | 1 . . . . . . . . 1 . . . . . . . . . . Hauler 18 | . 2 3 4 4 . . . . 3 . . . . . . . . . 2 Recycler 19 | 1 1 2 1 3 . . . . 6 . . . . . 2 . . 1 2 Minesweeper 1 | . . . . . . 1 . . . . . . . . . . . . . Operator 10 | . 1 1 2 . . . . . . . . . . . 1 . 5 . . Watcher 10 | . 1 4 . 3 . . . . . . . . . . . . . . 2 Swarmer 56 | . 9 8 7 7 . 10 . 3 6 . . . . . . . . 2 4 Saboteur 1 | . . . . . . . . . 1 . . . . . . . . . . Grunt 63 | . 4 5 11 . . 6 . 1 23 2 . . . . 1 2 . 3 5 Brawler 5 | . . . . . . . . . 4 . . . . . . 1 . . . Duelist 1 | . . . 1 . . . . . . . . . . . . . . . . Sentry 20 | . . 4 4 4 . 2 . . . 1 1 . . . . . 1 1 2 Specialist 4 | . . . 2 . . . . 2 . . . . . . . . . . . Hunter 8 | . . . . 1 . . . . 2 . 1 . . . . . . . 4 Programmer 14 | . . . . 2 1 . . 1 6 . . . . . . . . . 4 Enhanced Grunt 1 | . . . . . . . . . . . . . . . . . . 1 . Decomposer 1 | . . . . . . 1 . . . . . . . . . . . . . Packrat 1 | . . . . . . . . . . 1 . . . . . . . . . Samaritan 2 | . . . . . . . . . . 2 . . . . . . . . . Guerrilla 2 | . . . . . . . . . . . . . . . 2 . . . . Mutant 2 | . . . . . . . . 1 . . 1 . . . . . . . . Best Kill Streak 14 | 1 14 9 9 6 1 12 . 3 11 2 1 . . . 1 3 2 3 5 Combat Bots Only 12 | . 10 5 7 4 1 12 . 3 7 2 1 . . . 1 3 1 3 4 Max Kills in Single Turn 5 | 1 3 5 3 2 1 3 . 3 4 1 1 . . . 2 2 1 2 2 Gunslinging 1 | . . 1 . . . . . . 1 . . . . . . . . . 1 Exploded 4 | . 2 3 3 2 . 3 . 3 4 . . . . . . . . 2 2 Melee 1 | . . . . 1 1 1 . 1 1 . . . . . . . . . . Uniques/NPCs Destroyed . | . . . . . . . . . . . . . . . . . . . . Combat | -11 -10 -9 -8 -7 -7 -7 -7 -6 -6 -6 -6 -6 -5 -5 -5 -5 -5 -5 -4 -------- Run | Scr Mat Mat Mat Fac Low Low Zio Pro Fac Low Low Dat Pro Fac Ext Cet Arc Hub Fac Damage Taken 19604 | . 624 504 1126 1285 361 1504 . 563 3606 206 379 . . 294 168 61 194 1778 6951 Core 2707 | . 122 43 89 175 52 202 . 160 386 33 38 . . 23 32 . 22 118 1212 Absorbed by Shields 171 | . . . . . . 52 . . . . . . . . 62 57 . . . Reduced by Siege Mode 124 | . . . . . . . . . . . . . . . . . . . 124 Core Remaining (%) 66 | 100 51 89 83 . . . . 15 . . . . 46 . . . . 80 . Volleys Fired 485 | 4 36 52 68 7 3 14 . 24 106 9 16 . 7 37 9 7 5 21 60 Largest 4 | 2 2 3 3 1 1 1 . 1 3 3 3 . 1 3 4 4 4 4 4 Hottest 135 | 70 46 69 69 30 60 30 . 36 90 90 93 . 90 90 123 123 115 120 135 Shots Fired 1149 | 8 58 145 193 7 3 14 . 24 290 24 37 . 8 39 30 23 22 57 167 Gun 986 | 8 44 142 188 . 1 . . . 278 24 32 . 1 3 28 22 22 48 145 Cannon 67 | . . . . . . . . . 5 . 5 . 7 27 . . . 7 16 Launcher 70 | . 14 3 5 7 2 14 . 10 7 . . . . . . . . 2 6 Special 26 | . . . . . . . . 14 . . . . . 9 2 1 . . . Kinetic 980 | 4 44 141 188 . . . . . 278 24 32 . 1 3 28 22 22 48 145 Thermal 86 | 4 . 1 . . 1 . . 14 5 . 5 . 7 27 . . . 7 15 Explosive 70 | . 14 3 5 7 2 14 . 10 7 . . . . . . . . 2 6 Electromagnetic 1 | . . . . . . . . . . . . . . . . . . . 1 Robot Hit Streak 16 | 3 5 11 15 3 . 5 . 6 15 10 16 . . . 4 3 3 5 12 Robot Miss Streak 5 | 1 4 4 2 2 3 2 . 1 5 1 1 . . . 4 2 4 3 5 Penetration Max 1 | . . . . . . . . . . . . . . . 1 1 . 1 1 Secondary Targets 18 | . 1 2 1 . . . . . 5 1 . . . . . 1 . 1 6 Max Gunslinging Chain 1 | . 1 1 1 . . . . . 1 1 . . . . . 1 . 1 1 Shots Hit Robots 796 | 5 23 79 141 70 4 28 . 25 202 26 28 . . . 16 13 22 23 91 Core Hits 515 | 3 33 38 63 37 1 32 . 20 157 13 10 . . . 12 8 11 23 54 Critical Kills 18 | . . . 1 . . . . . 3 . 1 . . . 2 1 1 2 7 Critical Parts Destroyed 13 | . . . 1 . . . . . 3 . . . . . . . 1 2 6 Critical Strikes 38 | . . . 2 4 . . . . 6 . 1 . . . 2 1 3 5 14 Destroy 34 | . . . 2 . . . . . 6 . 1 . . . 2 1 3 5 14 Sever 4 | . . . . 4 . . . . . . . . . . . . . . . Melee Attacks 205 | . . . 1 103 7 23 . 11 19 7 10 . 1 3 2 . 10 . 8 Impact . | . . . . . . . . . . . . . . . . . . . . Slashing 183 | . . . 1 103 7 23 . 11 19 7 10 . 1 1 . . . . . Piercing 22 | . . . . . . . . . . . . . . 2 2 . 10 . 8 Sneak Attacks 35 | . . . 1 19 . 2 . . . 5 . . . . 1 . 7 . . Combat Hostiles . | . . . . . . . . . . . . . . . . . . . . Follow-up Attacks 25 | . . . . 18 1 4 . 2 . . . . . . . . . . . Damage Inflicted 31353 | 62 1222 1590 2603 4648 239 2586 . 1716 7109 1251 786 . . . 555 365 1178 1458 3985 Guns 13710 | 62 242 1189 2134 . . . . . 4548 417 533 . . . 399 365 417 899 2505 Cannons . | . . . . . . . . . . . . . . . . . . . . Explosions 9488 | . 980 401 353 610 85 1741 . 1144 2181 . . . . . . . . 551 1442 Melee 8011 | . . . 116 4038 154 845 . 463 353 834 253 . . . 156 . 761 . 38 Ramming 35 | . . . . . . . . . 27 . . . . . . . . 8 . Kinetic 13673 | 37 242 1177 2134 . . . . . 4548 417 533 . . . 399 365 417 899 2505 Thermal 550 | 25 . 12 . . . . . 109 . . . . . . . . . . 404 Explosive 9024 | . 980 401 353 610 85 1741 . 1144 2181 . . . . . . . . 491 1038 Electromagnetic 60 | . . . . . . . . . . . . . . . . . . 60 . Impact . | . . . . . . . . . . . . . . . . . . . . Slashing 7056 | . . . 116 4038 154 845 . 463 353 834 253 . . . . . . . . Piercing 955 | . . . . . . . . . . . . . . . 156 . 761 . 38 Highest Corruption 8 | . . 2 . 2 2 2 2 . 5 5 5 5 5 8 8 8 8 6 6 Average Corruption 4 | . . 2 . 1 2 2 2 . 4 5 5 5 5 8 8 8 7 2 2 Corruption Purged 14 | . . . . . . . . . . . . . . . . . 8 . 6 Effects 337 | . . 9 . 6 7 8 2 . 91 29 31 4 33 8 55 16 29 1 8 Message Errors 92 | . . 5 . 3 4 2 2 . 20 8 6 . 9 3 18 6 5 . 1 Matter Fused 75 | . . . . . . . . . 22 3 8 . 12 2 12 3 11 1 1 Heat Flow Errors 40 | . . 2 . . 1 1 . . 8 7 3 3 2 . 8 1 2 . 2 Energy Discharges 45 | . . 1 . 2 1 3 . . 15 2 6 . 2 1 7 2 1 . 2 Parts Rejected 2 | . . . . . . . . . 1 . 1 . . . . . . . . Data Loss (minor) 52 | . . . . 1 1 2 . . 18 5 3 . 6 1 6 1 6 . 2 Data Loss (major) 20 | . . . . . . . . . 3 3 4 1 1 1 4 1 2 . . Misfires 6 | . . . . . . . . . 2 1 . . 1 . . . 2 . . Weapon Failures 5 | . . 1 . . . . . . 2 . . . . . . 2 . . . Overload Shots 1 | . . . . . 1 . . . . . . . . . . . . . . Overflow Damage 2014 | . 57 11 136 726 . 233 . 134 84 246 98 . . . 102 . 173 . 14 Projectiles . | . . . . . . . . . . . . . . . . . . . . Explosions 297 | . 57 11 30 26 . 42 . 58 73 . . . . . . . . . . Melee 1717 | . . . 106 700 . 191 . 76 11 246 98 . . . 102 . 173 . 14 Knockbacks 1 | . . . . . . . . . 1 . . . . . . . . . . Impact 1 | . . . . . . . . . 1 . . . . . . . . . . Kinetic . | . . . . . . . . . . . . . . . . . . . . Secondary . | . . . . . . . . . . . . . . . . . . . . Self-Inflicted Damage 737 | . 43 40 21 130 29 43 . 37 165 . . . . . . . . 158 71 Shots 23 | . 2 1 1 4 1 2 . 2 5 . . . . . . . . 2 3 Rammed 5 | . . . . . . . . . 4 . . . . . . . . 1 . Targets Rammed 5 | . . . . . . . . . 4 . . . . . . . . 1 . Kicked . | . . . . . . . . . . . . . . . . . . . . Crushed . | . . . . . . . . . . . . . . . . . . . . Highest Temperature 410 | 38 12 230 107 . 167 241 . 5 308 396 267 246 192 256 277 234 398 189 410 Average Temperature 72 | 17 6 43 29 . 66 52 . 2 59 139 93 110 80 93 100 93 158 57 69 Received Heat Transfer 3585 | . 114 168 279 216 72 403 . 72 850 66 100 . . 9 21 . 6 174 1035 Effects 12 | . . . . . . . . . 3 . 3 . . . . . 5 . 1 Shutdowns 2 | . . . . . . . . . . . . . . . . . 1 . 1 Energy Bleed 2 | . . . . . . . . . . . 1 . . . . . 1 . . Interference 8 | . . . . . . . . . 3 . 2 . . . . . 3 . . Siege Activations 1 | . . . . . . . . . . . . . . . . . . . 1 Total Turns 23 | . . . . . . . . . . . . . . . . . . . 23 Longest Duration 23 | . . . . . . . . . . . . . . . . . . . 23 Robots Corrupted . | . . . . . . . . . . . . . . . . . . . . Combat Hostiles . | . . . . . . . . . . . . . . . . . . . . Parts Fried 1 | . . . . . . . . . 1 . . . . . . . . . . Impact Corruptions 1 | . . . . . . . . . 1 . . . . . . . . . . Robots Melted . | . . . . . . . . . . . . . . . . . . . . Combat Hostiles . | . . . . . . . . . . . . . . . . . . . . Parts Melted 1 | . . . . . . . . 1 . . . . . . . . . . . Heat Transferred 731 | 74 . 37 . . . . . 370 . . . . . . . . . . 250 Parts Sabotaged . | . . . . . . . . . . . . . . . . . . . . Parts Stolen . | . . . . . . . . . . . . . . . . . . . . Parts Stripped . | . . . . . . . . . . . . . . . . . . . . Power Chain Reactions . | . . . . . . . . . . . . . . . . . . . . Missiles Intercepted . | . . . . . . . . . . . . . . . . . . . . Alert | -11 -10 -9 -8 -7 -7 -7 -7 -6 -6 -6 -6 -6 -5 -5 -5 -5 -5 -5 -4 ------- Run | Scr Mat Mat Mat Fac Low Low Zio Pro Fac Low Low Dat Pro Fac Ext Cet Arc Hub Fac Peak Influence 1453 | 10 370 394 568 763 . . . . 990 . . . . 91 1033 1271 742 1017 1453 Initial 567 | . 6 40 102 252 . . . . 70 . . . . . . 567 508 154 483 Average 448 | 7 141 211 441 435 . . . . 422 . . . . 8 436 864 567 623 837 Maximum Alert Level 4 | . 1 1 2 3 . . . . 3 . . . . . 3 4 3 3 4 Low Security (%) 18 | 100 51 41 7 . . . . . 13 . . . . 100 24 . . 27 . Level 1 31 | . 48 58 24 66 . . . . 40 . . . . . 28 . . 2 . Level 2 29 | . . . 67 32 . . . . 25 . . . . . 25 34 69 4 40 Level 3 18 | . . . . . . . . . 20 . . . . . 21 55 30 66 34 Level 4 2 | . . . . . . . . . . . . . . . . 9 . . 25 Level 5 . | . . . . . . . . . . . . . . . . . . . . High Security . | . . . . . . . . . . . . . . . . . . . . Max Security . | . . . . . . . . . . . . . . . . . . . . Squads Dispatched 45 | . 1 2 5 4 . . . . 11 . . . . 2 5 . . 3 12 Investigation 5 | . . . 1 1 . . . . . . . . . 1 . . . . 2 Extermination 13 | . . . . 2 . . . . 7 . . . . 1 . . . 1 2 Reinforcement 21 | . 1 2 4 1 . . . . 3 . . . . . 3 . . 2 5 Assault 5 | . . . . . . . . . 1 . . . . . 2 . . . 2 Garrison 1 | . . . . . . . . . . . . . . . . . . . 1 Intercept . | . . . . . . . . . . . . . . . . . . . . Construction Impeded 8 | . . . 1 . . . . . 2 . . . . . 2 . . 1 2 Haulers Reinforced 3 | . . . . . . . . . 1 . . . . . . . . . 2 Active Scanning Responses . | . . . . . . . . . . . . . . . . . . . . Cargo Convoy Interrupts 1 | . . . . 1 . . . . . . . . . . . . . . . Stealth | -11 -10 -9 -8 -7 -7 -7 -7 -6 -6 -6 -6 -6 -5 -5 -5 -5 -5 -5 -4 --------- Run | Scr Mat Mat Mat Fac Low Low Zio Pro Fac Low Low Dat Pro Fac Ext Cet Arc Hub Fac Distress Signals 20 | . 1 4 2 4 . . . . 2 . . . . . 1 2 . 2 2 Communications Jammed 39 | . . . . . . . . . 23 . . . . . . . . 16 . Distress Signals 30 | . . . . . . . . . 18 . . . . . . . . 12 . Times Spotted 397 | . 21 26 36 29 6 20 1 11 67 3 3 . . 1 38 23 17 24 71 Peak Tracking Total 25 | . 6 7 5 4 5 11 1 4 7 2 1 . . 2 6 5 2 6 25 Tactical Retreats 15 | . . 2 1 . . . . . 3 . . . . . 2 . . 3 4 Traps | -11 -10 -9 -8 -7 -7 -7 -7 -6 -6 -6 -6 -6 -5 -5 -5 -5 -5 -5 -4 ------- Run | Scr Mat Mat Mat Fac Low Low Zio Pro Fac Low Low Dat Pro Fac Ext Cet Arc Hub Fac Traps Triggered 8 | . . 1 1 2 . . . . . . . . . 1 1 . . . 2 Indirectly . | . . . . . . . . . . . . . . . . . . . . Trap Hack Attempts . | . . . . . . . . . . . . . . . . . . . . Triggered . | . . . . . . . . . . . . . . . . . . . . Disarmed . | . . . . . . . . . . . . . . . . . . . . Reprogrammed . | . . . . . . . . . . . . . . . . . . . . Reused . | . . . . . . . . . . . . . . . . . . . . Traps Extracted . | . . . . . . . . . . . . . . . . . . . . Installed 2 | . . . . . . . . . . . . . . . . . . 2 . Triggered 2 | . . . . 1 . 1 . . . . . . . . . . . . . Machines | -11 -10 -9 -8 -7 -7 -7 -7 -6 -6 -6 -6 -6 -5 -5 -5 -5 -5 -5 -4 ---------- Run | Scr Mat Mat Mat Fac Low Low Zio Pro Fac Low Low Dat Pro Fac Ext Cet Arc Hub Fac Machines Disabled 49 | . 2 4 . 1 . 2 . . 12 . 1 . . . 4 1 3 4 15 Max in Single Turn 4 | . 2 1 . 1 . 1 . . 4 . 1 . . . 1 . 2 2 4 Garrison Access 2 | . . . . . . . . . 1 . . . . . . . . . 1 Network Hub 1 | . . . . . . . . . . . . . . . . . . 1 . Machines Sabotaged . | . . . . . . . . . . . . . . . . . . . . Garrisons Compromised 1 | . . . . 1 . . . . . . . . . . . . . . . Overloaded Fab Kills . | . . . . . . . . . . . . . . . . . . . . Fab Network Shutdowns . | . . . . . . . . . . . . . . . . . . . . Hacking | -11 -10 -9 -8 -7 -7 -7 -7 -6 -6 -6 -6 -6 -5 -5 -5 -5 -5 -5 -4 --------- Run | Scr Mat Mat Mat Fac Low Low Zio Pro Fac Low Low Dat Pro Fac Ext Cet Arc Hub Fac Machines Accessed 38 | . 6 6 2 7 1 1 . . 5 1 . 4 . . . . . . 5 Terminals 22 | . 6 6 1 7 . 1 . . . 1 . . . . . . . . . Fabricators 4 | . . . . . . . . . 2 . . . . . . . . . 2 Repair Stations . | . . . . . . . . . . . . . . . . . . . . Recycling Units 2 | . . . . . . . . . . . . . . . . . . . 2 Scanalyzers 2 | . . . . . . . . . 2 . . . . . . . . . . Garrison Access 3 | . . . 1 . . . . . 1 . . . . . . . . . 1 Total Hacks 123 | . 11 22 5 22 1 4 . . 16 1 . 29 . . . . . . 12 Successful 81 | . 8 9 . 11 1 4 . . 13 1 . 29 . . . . . . 5 Failed 42 | . 3 13 5 11 . . . . 3 . . . . . . . . . 7 Catastrophic 4 | . . . . 2 . . . . . . . . . . . . . . 2 Database Lockouts . | . . . . . . . . . . . . . . . . . . . . Manual 87 | . 2 13 . 15 . . . 1 12 . . . . 7 15 4 . 9 9 Terminals 63 | . 11 22 3 22 . 4 . . . 1 . . . . . . . . . Fabricators 12 | . . . . . . . . . 6 . . . . . . . . . 6 Repair Stations . | . . . . . . . . . . . . . . . . . . . . Recycling Units 3 | . . . . . . . . . . . . . . . . . . . 3 Scanalyzers 9 | . . . . . . . . . 9 . . . . . . . . . . Garrison Access 6 | . . . 2 . . . . . 1 . . . . . . . . . 3 Terminal Hacks 54 | . 6 6 . 7 1 4 . . . 1 . 29 . . . . . . . Record 16 | . . . . . . 4 . . . 1 . 11 . . . . . . . Part Schematic 9 | . . . . 1 . . . . . . . 8 . . . . . . . Robot Schematic 7 | . . . . . . . . . . . . 7 . . . . . . . Prototype ID Bank 5 | . 1 . . 1 . . . . . . . 3 . . . . . . . Open Door 1 | . . . . . 1 . . . . . . . . . . . . . . Branch Access Points 2 | . 1 . . 1 . . . . . . . . . . . . . . . Terminal Index 4 | . . 2 . 2 . . . . . . . . . . . . . . . Unreport Threat 2 | . . 1 . 1 . . . . . . . . . . . . . . . Locate Traps 4 | . 2 2 . . . . . . . . . . . . . . . . . Recall Investigation 1 | . . . . 1 . . . . . . . . . . . . . . . Registered Prototypes 1 | . 1 . . . . . . . . . . . . . . . . . . Zone Layout 2 | . 1 1 . . . . . . . . . . . . . . . . . Fabricator Hacks 5 | . . . . . . . . . 2 . . . . . . . . . 3 Load Schematic 2 | . . . . . . . . . 1 . . . . . . . . . 1 Build 3 | . . . . . . . . . 1 . . . . . . . . . 2 Repair Station Hacks . | . . . . . . . . . . . . . . . . . . . . Recycling Unit Hacks . | . . . . . . . . . . . . . . . . . . . . Scanalyzer 8 | . . . . . . . . . 8 . . . . . . . . . . Insert Component 5 | . . . . . . . . . 5 . . . . . . . . . . Analyze 3 | . . . . . . . . . 3 . . . . . . . . . . Garrison Access Hacks 1 | . . . . . . . . . 1 . . . . . . . . . . Seal Access 1 | . . . . . . . . . 1 . . . . . . . . . . Unauthorized Hacks 13 | . 2 3 . 4 . . . . 2 . . . . . . . . . 2 Terminals 9 | . 2 3 . 4 . . . . . . . . . . . . . . . Botnet 9 | . 2 3 . 4 . . . . . . . . . . . . . . . Fabricators 3 | . . . . . . . . . 2 . . . . . . . . . 1 Prioritize 1 | . . . . . . . . . 1 . . . . . . . . . . Haulers 2 | . . . . . . . . . 1 . . . . . . . . . 1 Repair Stations . | . . . . . . . . . . . . . . . . . . . . Recycling Units . | . . . . . . . . . . . . . . . . . . . . Scanalyzers . | . . . . . . . . . . . . . . . . . . . . Garrison Access 1 | . . . . . . . . . . . . . . . . . . . 1 Jam 1 | . . . . . . . . . . . . . . . . . . . 1 Data Cores Recovered . | . . . . . . . . . . . . . . . . . . . . Used . | . . . . . . . . . . . . . . . . . . . . Hacking Detections 28 | . 5 6 2 7 . . . . 3 . . . . . . . . . 5 Full Trace Events 1 | . . . . 1 . . . . . . . . . . . . . . . Feedback Events 1 | . . . . 1 . . . . . . . . . . . . . . . Corruption 1 | . . . . 1 . . . . . . . . . . . . . . . Feedback Blocked . | . . . . . . . . . . . . . . . . . . . . Robot Schematics Acquired 7 | . . . . . . . . . . . . 7 . . . . . . . Robots Built . | . . . . . . . . . . . . . . . . . . . . Matter . | . . . . . . . . . . . . . . . . . . . . Time . | . . . . . . . . . . . . . . . . . . . . Total Robot Build Rating . | . . . . . . . . . . . . . . . . . . . . Part Schematics Acquired 12 | . . . . 1 . . . . 3 . . 8 . . . . . . . Parts Built 4 | . . . . . . . . . 2 . . . . . . . . . 2 Matter 815 | . . . . . . . . . 146 . . . . . . . . . 669 Time 429 | . . . . . . . . . 73 . . . . . . . . . 356 Total Part Build Rating 19 | . . . . . . . . . 6 . . . . . . . . . 13 Parts Repaired . | . . . . . . . . . . . . . . . . . . . . Time . | . . . . . . . . . . . . . . . . . . . . Parts Recycled . | . . . . . . . . . . . . . . . . . . . . Recycled Matter . | . . . . . . . . . . . . . . . . . . . . Retrieved Matter . | . . . . . . . . . . . . . . . . . . . . Retrieved Components . | . . . . . . . . . . . . . . . . . . . . Parts Scanalyzed 3 | . . . . . . . . . 3 . . . . . . . . . . Part Schematics Acquired 3 | . . . . . . . . . 3 . . . . . . . . . . Parts Damaged 1 | . . . . . . . . . 1 . . . . . . . . . . Bothacking | -11 -10 -9 -8 -7 -7 -7 -7 -6 -6 -6 -6 -6 -5 -5 -5 -5 -5 -5 -4 ------------ Run | Scr Mat Mat Mat Fac Low Low Zio Pro Fac Low Low Dat Pro Fac Ext Cet Arc Hub Fac Used RIF Installer . | . . . . . . . . . . . . . . . . . . . . Robots Hacked . | . . . . . . . . . . . . . . . . . . . . Non-combat . | . . . . . . . . . . . . . . . . . . . . Combat . | . . . . . . . . . . . . . . . . . . . . Robot Hacks Applied . | . . . . . . . . . . . . . . . . . . . . Relay Couplers Released . | . . . . . . . . . . . . . . . . . . . . Robots Rewired 11 | . . . . . . . . . . . . . . . 11 . . . . Allies Hacked . | . . . . . . . . . . . . . . . . . . . . Hacks Repelled . | . . . . . . . . . . . . . . . . . . . . Allies | -11 -10 -9 -8 -7 -7 -7 -7 -6 -6 -6 -6 -6 -5 -5 -5 -5 -5 -5 -4 -------- Run | Scr Mat Mat Mat Fac Low Low Zio Pro Fac Low Low Dat Pro Fac Ext Cet Arc Hub Fac Total Allies 52 | . . . . . . . 4 . 2 . . . 1 9 27 6 . 1 2 Largest Group 16 | . . . . . . . 4 4 2 . . . 1 7 16 14 6 6 2 Highest-Rated Group 873 | . . . . . . . 145 145 170 . . . 95 389 865 873 605 502 206 Highest-Rated Ally 156 | . . . . . . . 37 37 85 . . . 95 95 156 156 135 95 103 Zionite Dispatches 11 | . . . . . . . . . 2 . . . . 3 3 1 . 1 1 Heavy 3 | . . . . . . . . . 1 . . . . . 1 . . . 1 Light 3 | . . . . . . . . . . . . . . 2 1 . . . . Recon 1 | . . . . . . . . . 1 . . . . . . . . . . Fire 1 | . . . . . . . . . . . . . . 1 . . . . . Kinetic Resupply 1 | . . . . . . . . . . . . . . . . 1 . . . Trap Resupply 1 | . . . . . . . . . . . . . . . . . . 1 . Infowar Resupply 1 | . . . . . . . . . . . . . . . 1 . . . . Total Orders 11 | . . . . . . . . . 7 . . . . . 2 1 . 1 . FOLLOW 1 | . . . . . . . . . . . . . . . 1 . . . . DROP 3 | . . . . . . . . . . . . . . . 1 1 . 1 . EXPLORE 7 | . . . . . . . . . 7 . . . . . . . . . . Ally Attacks 498 | . . . . . . . . 17 30 . . . 1 7 260 103 23 49 8 Total Damage 15736 | . . . . . . . . 424 1728 . . . 62 294 7151 3056 807 1548 666 Kills 101 | . . . . . . . . 5 7 . . . 1 3 45 22 3 12 3 Allies Corrupted 5 | . . . . . . . . . . . . . . 2 1 . . . 2 Allies Melted 1 | . . . . . . . . . . . . . . . 1 . . . . Intel | -11 -10 -9 -8 -7 -7 -7 -7 -6 -6 -6 -6 -6 -5 -5 -5 -5 -5 -5 -4 ------- Run | Scr Mat Mat Mat Fac Low Low Zio Pro Fac Low Low Dat Pro Fac Ext Cet Arc Hub Fac Robot Analysis Total . | . . . . . . . . . . . . . . . . . . . . Derelict Logs Recovered 11 | . . . . . 2 1 2 2 . 2 1 . 1 . . . . . . Drone Launches 7 | . . . . . . . . . 7 . . . . . . . . . . Drone Recoveries 5 | . . . . . . . . . 5 . . . . . . . . . . Zionite Intel Received 2 | . . . . . . . . . . . . . . . 1 . . 1 . Guard Positions 1 | . . . . . . . . . . . . . . . 1 . . . . Active Garrisons 1 | . . . . . . . . . . . . . . . . . . 1 . Exploration | -11 -10 -9 -8 -7 -7 -7 -7 -6 -6 -6 -6 -6 -5 -5 -5 -5 -5 -5 -4 ------------- Run | Scr Mat Mat Mat Fac Low Low Zio Pro Fac Low Low Dat Pro Fac Ext Cet Arc Hub Fac Turns Passed 30753 | 65 891 992 1188 1774 694 1444 8742 784 3986 997 1394 141 1285 593 2188 398 1182 625 1390 Spaces Moved 11043 | 42 476 492 544 1089 543 378 1746 455 1617 352 447 84 455 137 749 179 238 316 704 Core 1163 | . . . . . . 103 942 . . . . . . . . . 22 . 96 Treads 6397 | . 476 492 414 . . . . . 1568 352 447 84 455 137 749 179 216 316 512 Legs 3454 | 42 . . 130 1089 543 246 804 455 49 . . . . . . . . . 96 Wheels 29 | . . . . . . 29 . . . . . . . . . . . . . Hover . | . . . . . . . . . . . . . . . . . . . . Flight . | . . . . . . . . . . . . . . . . . . . . Fastest Speed 50 | 120 160 160 90 115 122 122 120 120 120 262 263 165 265 265 164 160 160 160 50 Average Speed 232 | 120 160 160 149 120 122 351 452 120 171 262 269 166 265 265 263 174 467 162 142 Slowest Speed 2450 | 120 160 160 166 122 122 850 750 120 265 263 365 265 265 265 265 262 2450 163 270 Overloaded Moves . | . . . . . . . . . . . . . . . . . . . . Propulsion Burnouts . | . . . . . . . . . . . . . . . . . . . . Robots Hopped . | . . . . . . . . . . . . . . . . . . . . Cave-ins Triggered 1 | . . . . . . . . . . . . . . 1 . . . . . Exploration Rate (%) 55 | 3 91 49 49 25 63 56 89 51 66 56 65 70 64 3 85 73 91 32 22 Regions Visited 19 Branch Regions 12 Pre-discovered Areas 4 | . . . . . 1 1 1 . . . . 1 . . . . . . . Known Exits Taken 12 | . . . . 1 1 . . . 1 1 1 1 1 1 1 1 1 1 . Unknown Exits Taken 7 | 1 1 1 1 . . 1 1 1 . . . . . . . . . . . Scrap Searched 19 | . . . . . 3 2 4 1 . 2 4 . 3 . . . . . . Spaces Dug 264 | . . 6 . 15 2 . . . 14 . 12 . 8 30 . . . 157 20 Terrain Destroyed 964 | . 57 16 36 69 24 45 . 87 160 . 12 . 8 30 . 3 5 192 220 Melee 42 | . . . . 15 1 . . . 9 . 7 . 1 3 . . . . 6 Projectile 151 | . . . . . 1 . . . 8 . 5 . 7 27 . 3 5 14 81 AOE 771 | . 57 16 36 54 22 45 . 87 143 . . . . . . . . 178 133 Terrain Rammed . | . . . . . . . . . . . . . . . . . . . . Walls Destroyed . | . . . . . . . . . . . . . . . . . . . . Machines Disabled . | . . . . . . . . . . . . . . . . . . . . Actions | -11 -10 -9 -8 -7 -7 -7 -7 -6 -6 -6 -6 -6 -5 -5 -5 -5 -5 -5 -4 --------- Run | Scr Mat Mat Mat Fac Low Low Zio Pro Fac Low Low Dat Pro Fac Ext Cet Arc Hub Fac Total 15020 | 49 554 615 815 1411 561 452 2583 638 2595 401 589 88 525 316 947 256 280 390 955 Wait 2409 | . 3 19 124 171 . 17 804 134 669 17 80 . 54 124 37 23 17 24 92 Move 11023 | 41 475 491 543 1088 542 377 1745 454 1616 351 446 83 454 135 748 178 237 315 704 Hop . | . . . . . . . . . . . . . . . . . . . . Pick Up 189 | 2 15 16 22 17 3 5 12 3 44 2 4 . . 1 11 10 2 6 14 Fast Attach 43 | . 1 1 5 4 . . 3 5 4 . 4 1 . . 4 2 2 . 7 Attach 125 | . 3 5 6 4 1 10 6 2 27 5 6 1 1 6 9 7 1 2 23 Detach 43 | . . . . . . 5 2 . 7 3 5 2 2 2 6 5 . . 4 Swap 241 | . 11 15 17 25 5 4 1 5 66 5 14 . 6 4 9 8 3 12 31 Drop 183 | 2 10 16 29 19 2 1 10 3 33 2 4 1 . 1 12 16 3 7 12 Fire 485 | 4 36 52 68 7 3 14 . 24 106 9 16 . 7 37 9 7 5 21 60 Melee 169 | . . . 1 76 5 19 . 8 19 7 10 . 1 3 2 . 10 . 8 Ram . | . . . . . . . . . . . . . . . . . . . . Kick . | . . . . . . . . . . . . . . . . . . . . Crush 5 | . . . . . . . . . 4 . . . . . . . . 1 . Escape Stasis 8 | . . . . . . . . . . . . . . 3 5 . . . . Rewire 95 | . . . . . . . . . . . . . . . 95 . . . . Trap 2 | . . . . . . . . . . . . . . . . . . 2 . Miscellaneous . | . . . . . . . . . . . . . . . . . . . . Route ------- -11/Scrapyard -10/Materials (discovered 3 exits: *Mat x2 / *Min) -9/Materials (discovered 2 exits: *Mat / [*Min]) -8/Materials -7/Factory (discovered 4 exits: *Sto x2 / *Low x2) -7/Lower Caves -7/Lower Caves -7/Zion (discovered 2 exits: Dee / *Pro) -6/Proximity Caves -6/Factory (discovered 4 exits: *Fac x3 / *Low) -6/Lower Caves -6/Lower Caves (discovered 2 exits: Fac / *Dat) -6/Data Miner -5/Proximity Caves -5/Factory (discovered 4 exits: Upp x2 / *Ext x2) -5/Extension (discovered 3 exits: *Fac x2 / *Cet) -5/Cetus (discovered 2 exits: *Fac / *Arc) -5/Archives (discovered 3 exits: *Fac / *Hub x2) -5/Hub_04(d) -4/Factory History --------- Turn | Location | Event 2 | -11/Scrapyard | Discovered new exit (range 0) 66 | -11/Scrapyard | Entered Materials 304 | -10/Materials | Build established: Mutant 332 | -10/Materials | Identified exit to Mines 456 | -10/Materials | Discovered new exit (range 15) 492 | -10/Materials | Destroyed 10 combat bots 905 | -10/Materials | Discovered new exit (range 16) 957 | -10/Materials | Entered another Materials area 957 | -9/Materials | Evolved 2 slots: Propulsion x1, Weapon x1 1221 | -9/Materials | Discovered new exit (range 15) 1264 | -9/Materials | Build established: Tank 1897 | -9/Materials | Discovered new exit (range 14) 1949 | -9/Materials | Entered another Materials area 1949 | -8/Materials | Evolved 2 slots: Utility x2 2240 | -8/Materials | Destroyed 7 combat bots 2283 | -8/Materials | Build established: Gunner 3107 | -8/Materials | Discovered new exit (range 16) 3137 | -8/Materials | Entered Factory 3137 | -7/Factory | Evolved 2 slots: Propulsion x2 3489 | -7/Factory | Build established: Mutant 3783 | -7/Factory | Discovered new exit (range 12) 4332 | -7/Factory | Cargo convoy interrupted 4480 | -7/Factory | Identified exit to Storage 4480 | -7/Factory | Identified exit to Lower Caves 4911 | -7/Factory | Entered Lower Caves 5264 | -7/Lower Caves | Learned Factory security intel 5496 | -7/Lower Caves | Attacked by a faux Warlord 5592 | -7/Lower Caves | Discovered new exit (range 11) 5604 | -7/Lower Caves | Identified exit to Lower Caves 5605 | -7/Lower Caves | Entered another Lower Caves area 5607 | -7/Lower Caves | Attracted the attention of an 0b10 checkpoint 5680 | -7/Lower Caves | Lost 5 parts (3n1u1w) 5788 | -7/Lower Caves | Encountered a Warlord checkpoint 6188 | -7/Lower Caves | Attracted the attention of an 0b10 base 6205 | -7/Lower Caves | Destroyed 12 combat bots 6214 | -7/Lower Caves | Core integrity fell below 50% 6235 | -7/Lower Caves | Lost 5 parts (1p3n1u) 6374 | -7/Lower Caves | Learned Armory terminal intel 6374 | -7/Lower Caves | Learned Extension emergency access door positions 6374 | -7/Lower Caves | Learned 6 Upper Caves zone layouts 6840 | -7/Lower Caves | Discovered new exit (range 8) 7049 | -7/Lower Caves | Entered Zion 7253 | -7/Zion | System corruption cleaned by Quarantine Array 7848 | -7/Zion | Discovered new exit (range 10) 8468 | -7/Zion | Identified exit to Deep Caves 8764 | -7/Zion | Found Prototype Launcher 8764 | -7/Zion | Identified Rocket Array 15399 | -7/Zion | Imprinted 15402 | -7/Zion | Declared Zion's savior 15791 | -7/Zion | Entered Proximity Caves 15791 | -6/Proximity Caves | Accompanied by 4 allies 16120 | -6/Proximity Caves | Acquired the password to a Derelict Tinkerer's latest research 16155 | -6/Proximity Caves | Found Prototype Special Weapon 16201 | -6/Proximity Caves | Learned Factory garrison access intel 16255 | -6/Proximity Caves | Caught by Unaware searching for contraband prototypes 16275 | -6/Proximity Caves | Caught by Unaware searching for contraband prototypes 16322 | -6/Proximity Caves | Core integrity fell below 20% 16489 | -6/Proximity Caves | Discovered new exit (range 3) 16499 | -6/Proximity Caves | Learned location of 1 exit from Proximity Caves 16575 | -6/Proximity Caves | Entered Factory 16575 | -6/Factory | Evolved 2 slots: Utility x2 16577 | -6/Factory | Loaded intel: 4 garrison access locations 16668 | -6/Factory | Build established: Scavenger-Mutant 16784 | -6/Factory | Identified Molecular Deconstructor 16840 | -6/Factory | Fabricated Arm. Treads (x2) 16960 | -6/Factory | Zion Recon squad teleported in 17053 | -6/Factory | Build established: Scavenger-Gunner 17099 | -6/Factory | Lost 4 parts (1p3u) 17115 | -6/Factory | Destroyed 7 combat bots 17266 | -6/Factory | Zion Heavy squad teleported in 17893 | -6/Factory | Terminal network hard line cut 18311 | -6/Factory | Found Prototype Protection 19439 | -6/Factory | Lost 3 parts (2n1w) 19550 | -6/Factory | Discovered new exit (range 15) 19573 | -6/Factory | Identified exit to Factory 20192 | -6/Factory | Discovered exit to Factory (range 8) 20387 | -6/Factory | Discovered exit to Factory (range 18) 20406 | -6/Factory | Discovered new exit (range 53) 20425 | -6/Factory | First assault squad dispatched 20555 | -6/Factory | Spotted B-75 Beast 20558 | -6/Factory | Identified exit to Lower Caves 20561 | -6/Factory | Entered Lower Caves 20767 | -6/Lower Caves | Learned 12 Factory zone layouts 20805 | -6/Lower Caves | Learned location of 1 exit from Factory 21065 | -6/Lower Caves | Build established: Scavenger-Assassin 21374 | -6/Lower Caves | Attracted the attention of an 0b10 checkpoint 21531 | -6/Lower Caves | Discovered new exit (range 11) 21555 | -6/Lower Caves | Identified exit to Lower Caves 21558 | -6/Lower Caves | Entered another Lower Caves area 21592 | -6/Lower Caves | Attracted the attention of an 0b10 checkpoint 21622 | -6/Lower Caves | Core integrity fell below 50% 21721 | -6/Lower Caves | Attacked by a delusional Derelict stockpiling parts 21790 | -6/Lower Caves | Build established: Skirmisher 22930 | -6/Lower Caves | Discovered new exit (range 9) 22949 | -6/Lower Caves | Identified exit to Data Miner 22952 | -6/Lower Caves | Entered Data Miner 22953 | -6/Data Miner | Discovered new exit (range 6) 22985 | -6/Data Miner | Met Data Miner 23022 | -6/Data Miner | Learned location of Section 7 (-2) 23022 | -6/Data Miner | Acquired the access code to Warlord's prototype stash 23046 | -6/Data Miner | Received God Mode back door access code from Data Miner 23089 | -6/Data Miner | Identified exit to Proximity Caves 23093 | -6/Data Miner | Entered Proximity Caves 23326 | -5/Proximity Caves | Learned Factory trap positions 23498 | -5/Proximity Caves | Build established: Scavenger-Mutant 23638 | -5/Proximity Caves | Escorted by Enhanced Grunt 24378 | -5/Proximity Caves | Entered Factory 24378 | -5/Factory | Accompanied by 1 ally 24378 | -5/Factory | Evolved 2 slots: Utility x1, Weapon x1 24379 | -5/Factory | Identified exit to Extension 24380 | -5/Factory | Identified exit to Upper Caves 24382 | -5/Factory | Loaded intel: 75 trap records 24408 | -5/Factory | Incoming investigation squad redirected 24527 | -5/Factory | Zion Light squad teleported in 24753 | -5/Factory | Crushed by falling debris 24786 | -5/Factory | Zion Fire squad teleported in 24809 | -5/Factory | Zion Light squad teleported in 24971 | -5/Factory | Entered Extension 24971 | -5/Extension | Accompanied by 7 allies 25044 | -5/Extension | Rescued a captive Derelict 25047 | -5/Extension | Zion Heavy squad teleported in 25354 | -5/Extension | Rescued a captive Derelict 25356 | -5/Extension | Zion Infowar Resupply teleported in 25446 | -5/Extension | Rescued A7 25685 | -5/Extension | Build established: Scavenger-Assassin 26037 | -5/Extension | Spotted B-75 Beast 26047 | -5/Extension | Spotted B-75 Beast 26055 | -5/Extension | Allies destroyed B-75 Beast 26064 | -5/Extension | Allies destroyed B-75 Beast 26111 | -5/Extension | Found Prototype Protection 26111 | -5/Extension | Identified Zio. Weapon Casing 26143 | -5/Extension | Discovered new exit (range 3) 26147 | -5/Extension | Zion Light squad teleported in 26171 | -5/Extension | First assault squad dispatched 26226 | -5/Extension | Rescued a captive Derelict 26227 | -5/Extension | Rescued a captive Derelict 26227 | -5/Extension | Retrieved Zion intel report: Guard Positions 26250 | -5/Extension | Build established: Scavenger-Tank 26267 | -5/Extension | Incoming assault squad redirected 26481 | -5/Extension | Terminal network hard line cut 26484 | -5/Extension | Rescued a captive Derelict 26485 | -5/Extension | Rescued a captive Derelict 26679 | -5/Extension | Rescued a captive Derelict 27021 | -5/Extension | Rescued a captive Derelict 27021 | -5/Extension | Rescued a captive Derelict 27077 | -5/Extension | Discovered new exit (range 10) 27089 | -5/Extension | Discovered new exit (range 6) 27102 | -5/Extension | Incoming assault squad redirected 27127 | -5/Extension | Disrupted transfer network 27153 | -5/Extension | Identified exit to Cetus 27159 | -5/Extension | Entered Cetus 27159 | -5/Cetus | Accompanied by 14 allies (A7) 27164 | -5/Cetus | Acquired a Cetus Manufacturing Module code from A7 27191 | -5/Cetus | Spotted Cetus Guard 27191 | -5/Cetus | Spotted Cetus Guard 27192 | -5/Cetus | Spotted Cetus Guard 27197 | -5/Cetus | Spotted Cetus Guard 27203 | -5/Cetus | Allies destroyed Cetus Guard 27209 | -5/Cetus | Allies destroyed Cetus Guard 27211 | -5/Cetus | Allies destroyed Cetus Guard 27211 | -5/Cetus | Allies destroyed Cetus Guard 27291 | -5/Cetus | Started Cetus Manufacturing Module 27309 | -5/Cetus | Zion Kinetic Resupply teleported in 27316 | -5/Cetus | Manufactured an Enhanced Grunt 27341 | -5/Cetus | Manufactured an Enhanced Grunt 27359 | -5/Cetus | Escorted A7 to Cetus Mainframe 27366 | -5/Cetus | Manufactured an Enhanced Grunt 27389 | -5/Cetus | Discovered new exit (range 22) 27391 | -5/Cetus | Manufactured an Enhanced Grunt 27416 | -5/Cetus | Manufactured an Enhanced Grunt 27421 | -5/Cetus | Spotted Cetus Guard 27423 | -5/Cetus | Spotted Cetus Guard 27427 | -5/Cetus | Spotted Cetus Guard 27431 | -5/Cetus | Discovered new exit (range 22) 27431 | -5/Cetus | Spotted Cetus Guard 27434 | -5/Cetus | Allies destroyed Cetus Guard 27437 | -5/Cetus | Allies destroyed Cetus Guard 27441 | -5/Cetus | Allies destroyed Cetus Guard 27444 | -5/Cetus | Allies destroyed Cetus Guard 27453 | -5/Cetus | Scared off Revision 17 27548 | -5/Cetus | Identified exit to Archives 27557 | -5/Cetus | Entered Archives 27557 | -5/Archives | Accompanied by 6 allies (A7) 27562 | -5/Archives | Received a hacking code to weaken MAIN.C 27583 | -5/Archives | Discovered new exit (range 22) 27620 | -5/Archives | Discovered new exit (range 20) 27703 | -5/Archives | Discovered new exit (range 22) 28541 | -5/Archives | Build established: Scavenger-Mutant 28732 | -5/Archives | Identified exit to Hub_04(d) 28739 | -5/Archives | Entered Hub_04(d) 28739 | -5/Hub_04(d) | Accompanied by 5 allies 28767 | -5/Hub_04(d) | Retrieved Zion intel report: Active Garrisons 28768 | -5/Hub_04(d) | Zion Trap Resupply teleported in 28950 | -5/Hub_04(d) | Discovered new exit (range 21) 29278 | -5/Hub_04(d) | Network Hub disabled 29292 | -5/Hub_04(d) | Spotted Lightning 29334 | -5/Hub_04(d) | Spotted Lightning 29334 | -5/Hub_04(d) | Spotted Lightning 29339 | -5/Hub_04(d) | Spotted Lightning 29363 | -5/Hub_04(d) | Identified exit to Factory 29364 | -5/Hub_04(d) | Entered Factory 29364 | -4/Factory | Spotted B-86 Titan 29364 | -4/Factory | Evolved 2 slots: Propulsion x1, Utility x1 29391 | -4/Factory | Lost 4 parts (1p2u1w) 29663 | -4/Factory | Fabricated Stealth Drone Bay (x1) 30114 | -4/Factory | First assault squad dispatched 30144 | -4/Factory | Incoming assault squad redirected 30220 | -4/Factory | Zion Heavy squad teleported in 30295 | -4/Factory | Garrison activated, responded to threat 30325 | -4/Factory | Fabricated Mni. Smartbomb Launcher (x1) 30428 | -4/Factory | Incoming investigation squad redirected 30513 | -4/Factory | Identified Zio. Heavy Carapace 30583 | -4/Factory | Lost 23 parts (2p4n8u9w) 30720 | -4/Factory | Incoming investigation squad redirected 30735 | -4/Factory | Core integrity fell below 50% 30754 | -4/Factory | Core integrity fell below 20% 30754 | -4/Factory | Destroyed by P-70 Sage via exploding Power Conduit Last Messages --------------- K-01 Serf collects debris. Slug penetrates Wall. Penetrated by Slug. Imp. Medium Armor Plating destroyed. Penetrated by Slug. C-30 ARC bursts open, deploying its payload. G-73 Enforcer unfolds itself. G-67 Veteran unfolds itself. I-47 Archangel unfolds itself. Adv. Target Analyzer destroyed. Dropped Adv. VSS Leg. Dropped Mic. Fission Core. Dropped Hvy. Plasma Cannon. Dropped Disruptor Cannon. Dropped Adv. Trap Scanner. Door malfunctions. W-44 Eye sends out distress signal. K-01 Serf collects debris. Imp. Heavy Treads destroyed. Power Conduit explodes. Map ----- +----------------------------------------------------+ | ?????????????????????# " " | | ?????????????????????# " " ??? | | ?????????????????????# " ] " | | ????????????????????????? " ] " ???? | | ?????????????????????????????# ]]] #?????## | | ?????????????????????????????# #??????? | | ?????????????????????????????# #??????? | | ????????????????###########+########/"###!######## | | ?????????????### = ]=] | | ??????????? %" * | | ???????????? k " | | ????????????? ^ | | ?????????????? ^ | | ??????????????? w ^ | | ???????????????#k ^ | | ???????????????# ########"####/#### | | ???????????????# b gg #???# # | | ???????????????# ^ #???#! # | | ???????????????# g #???# + | | ???????????????# #???# # | | ???????????????# #???# !! # | | ???????????????# #???# !! # | | ???????????????# #???# # | | ???????????????#"" #???# # | | ???????????????#"" #???# # | | ???????????????#G @ ##### # | | ???????????????#"" s s # | | ???????????????#"" = p ######## # | | ???????????????# #??????############## | | ???????????????# #???????????????????? | | ???????????????+ #####k#???????????????????? | | ???????????????# w ????#u#???????????????????? | | ???????????????# ?????# #???????????????????? | | ???????????????# ?????# #???????????????????? | | ???????????????# ??????# #???????????????????? | | ?????????????? ??????# #???????????????????? | | ????????????? ???????#+#???????????????????? | | ???????????? ?????????????????????????????? | | ??????????? ??????????A???????????????????? | | ?????????? ??????????????????????????????? | | ?????????? ???????????????????????????????? | | ??????????? ???????????????????????????????? | | ????????????? ????????????????????????????????? | | ???????????????? ????????????????????????????????? | | ?????????????????????????????????????????????????? | | ?????????????????????????????????????????????????? | | ?????????????????????????????????????????????????? | | ?????????????????????????????????????????????????? | | ?????????????????????????????????????????????????? | | ?????????????????????????????????????????????????? | +----------------------------------------------------+ Best States ------------- Heat Dissipation 64 Energy Generation 25 Energy Capacity 640 Matter Stores 300 Matter Capacity 300 Sight Range 22 Robot Scan Range 16 Terrain Scan Range 16 Terrain Scan Density 210 Jamming Range 14 Armor Coverage 900 Resistance: KI 30 Resistance: EM 15 Power Shielding 66 Weapon Shielding 66 Evasion (%) 57 Targeting Accuracy 12 Melee Accuracy 6 Target Analysis 8 Armor Integrity Analysis 20 Recoil Reduction 6 Matter Filtering 30 Kinecelleration 40 Salvage Targeting 1 Offensive Hacking 14 Item Schematics ----------------- Lrg. Storage Unit | -7/Factory | Hacked Arm. Treads | -6/Factory | Scanalyzed Mak. Sensor Array | -6/Factory | Scanalyzed Imp. Shield Generator | -6/Factory | Scanalyzed Combat Drone Bay | -6/Data Miner | Free Lgt. Regenerative Plating | -6/Data Miner | Free Cmb. Gravmag System | -6/Data Miner | Free Exp. Cesium-ion Thruster | -6/Data Miner | Free Exp. Sensor Array | -6/Data Miner | Free Exp. Transmission Jammer | -6/Data Miner | Free Exp. ECM Suite | -6/Data Miner | Free Mni. Smartbomb Launcher | -6/Data Miner | Free Robot Schematics ------------------ I-47 Archangel | -6/Data Miner | Free I-36 Angel | -6/Data Miner | Free P-70 Sage | -6/Data Miner | Free H-66 Slayer | -6/Data Miner | Free X-72 Disruptor | -6/Data Miner | Free G-50 Soldier | -6/Data Miner | Free S-27 Virus | -6/Data Miner | Free Fabricated ------------ Arm. Treads | x2 | -6/Factory Stealth Drone Bay | x1 | -4/Factory | Preloaded Mni. Smartbomb Launcher | x1 | -4/Factory Alien Tech Used ----------------- None Achievements -------------- None Challenges ------------ None Game ------ Seed KineticGuidedDrive Manual? 0 Play Time 03:24:54 Cumulative 293.1 hours Start 2021.08.28 @ 01:17:57 End 2021.08.30 @ 01:25:53 Sessions 5 Manual Loads 0 Difficulty Rogue Special Mode None Game No. 334 Rogue 334 Adventurer 0 Explorer 0 Win Type - Total 5 Types 5/0/0/0/0/0/0/0/0 Lore% 70 Gallery% 86 Achievement% 65 Wizard Run 0 Options --------- ASCII 0 Keyboard 0 Movement Mouse Keybinds 1 Fullscreen 2 Font 24/Smallcaps Map View 76x50 Tactical HUD 1 Map Filters NONE Filters NONE Steam 1 RUN: 35a6f41c-f5c0-4184-ab91-762d8dfa7367